{"text_format":"1","workbook":"xlsx","n_sheets":12,"sheets":["Übersicht","Exposit","Report","90. Perz","Metabolit","Konzept Runoff","Konzept Drainage","Konzept Uferfiltration","Gefährdungsgruppe","Berechnung","Mehrfachapplikation","Versionskontrolle"],"not_rendered":{"charts":0,"images":0,"macros":1,"external_links":0,"defined_names":3,"comments":0,"pivot_tables":0},"unopened":[],"bounds":{"document_bytes":16777216,"sheet_cells":100000,"rows_first":2000,"rows_last":500,"rows_between":2000,"halvings":0,"cell_chars":16384,"cell_head_chars":4096},"cells_cut":0,"cells_raw":0,"read":"whole","date_system":"1900"}

{"sheet":"Übersicht","index":0,"n_rows":68,"n_cols":7,"rows_kept":68,"cut":false,"hidden":false,"merged":[[22,3,22,4],[23,2,24,6],[2,1,2,7],[1,6,1,7],[3,1,3,7],[4,3,4,7],[5,1,5,7],[4,1,4,2],[11,1,11,7],[10,1,10,7],[20,4,20,6],[6,1,6,7],[7,1,7,7],[8,1,8,7],[9,1,9,7],[28,3,28,4],[29,3,29,4],[42,3,42,4],[41,2,42,2],[43,3,43,4],[34,3,34,4],[25,3,25,4],[26,2,26,6],[27,2,27,6],[59,3,59,4],[54,3,54,4],[55,2,56,6],[57,3,57,4],[29,2,32,2],[31,6,32,6],[45,6,46,6],[58,3,58,4],[44,2,46,2],[44,3,46,4],[44,5,46,5],[47,2,48,6],[49,5,51,5],[49,3,53,4],[49,2,53,2],[52,6,53,6],[49,6,51,6],[35,5,36,5],[41,3,41,4],[37,2,38,6],[39,3,39,4],[40,3,40,4],[35,2,36,2],[35,3,36,4]]}
[]
[null,null,null,null,null,null,"letzte Änderung: 14.12.2017"]
[null,"Umweltbundesamt (UBA), Fachgebiet IV 1.3 - Pflanzenschutzmittel, Wörlitzer Platz 1, D-06844 Dessau-Roßlau "]
[null,"E-Mail Kontakt: einvernehmensstelle.pflschg@uba.de"]
[null,"Bitte als Referenz angeben: ",null,"EXPOSIT 3.02, Umweltbundesamt. In: "]
[null,"http://www.bvl.bund.de/DE/04_Pflanzenschutzmittel/03_Antragsteller/04_Zulassungsverfahren/07_Naturhaushalt/psm_naturhaush_node.html"]
[null,"Simulationsmodell \"Exposit 3.02\""]
[null,"Abschätzung des Eintrages von PSM-Wirkstoffen in Oberflächengewässer über den Pfad Run-off und Drainage sowie des Risikos"]
[null,"1. einer Gefährdung des Grundwassers über anschließende Uferfiltration"]
[null,"2. für aquatische Organismen im Oberflächengewässer"]
[null,"EXPOSIT 3.02  wird für die nationale Bewertung im Zulassungsverfahren von Pflanzenschutzmitteln herangezogen. \nÄnderungen in Version 3.02\nIn der überarbeitete Programmversion wurde die Unterscheidung zwischen KocRunoffaustrag KocGefährungsklasse aufgehoben. Der einzustellende Koc-Wert sowohl für den Runoffaustrag als auch für die Einstufung in die Gefährdungsklasse orientiert sich an der EU Wirkstoffprüfung. Dabei wird der in der LoEP angegebene arithmetische bzw. geometrische Mittelwert verwendet. Falls neue Sorptionsdaten vorliegen, welche noch nicht im EU Verfahren bewertet wurden, ist ein \"data matching\" durchzuführen. Wird dabei die Relevanz der neuen Daten aufgezeigt, so sind diese in die Mittelwertbildung mit einzubeziehen. In diesem Fall ist immer das geometrische Mittel zu verwenden. "]
[null,"Die neue Programmversion EXPOSIT 3.02 kann ab sofort für die Dossiererstellung im Zulassungsverfahren für Pflanzenschutzmittel verwendet werden. Für Anträge, die ab dem 01. 08.2018 gestellt werden, ist EXPOSIT 3.02 verbindlich."]
[]
[]
[]
[]
[null,null,"Programmanleitung"]
[null,null,"Programmstart: Achtung Sicherheitswarnung Microsoft - ggfs. Makros aktivieren!"]
[]
[null,null,"Eingabeparameter"]
[null,"►","Blatt \"Exposit\": ",null,"p"]
[]
[null,null,"Parameter","Default",null,"Optionen","Auswirkungen auf das Ergebnis"]
[null,null,"Allgemeine Daten"]
[]
[null,"►","Wirkstoff","„anderer Wirkstoff“",null,"ausgewählte Wirkstoffe","- Verwendung substanzspezifischer Eliminationsraten bei der Uferfiltration"]
[null,null,"Stoffdaten"]
[null,null,"Die Stoffdaten werden zur Einstufung des Wirkstoffs in die Gefährdungsgruppen I bis IV herangezogen. Gleichzeitig gehen einige Daten in die Expositionsberechnung ein."]
[null,null,"LH2O (mg/L)","Wasserlöslichkeit",null,"gemäß PC-Daten KIIA 2.6","- Auswahl der Gefährdungsgruppe Grundwasser"]
[null,null,"DT50 (d)","Labor (20°C, pF2, SFO):"]
[null,null,null,"Wirkstoff:","n ≥ 4: 90. Perzentil","Freiland (nicht normalisiert):","- Auswahl der Gefährdungsgruppe Grundwasser        "]
[null,null,null,null,"n < 4: Maximum","worst case DT50","- bestimmt Abbau des Wirkstoffs bis zum Regenereignis"]
[null,null,null,"Metabolit:","n ≥ 3: 90. Perzentil","(DE repräsentative Standorte)"]
[]
[null,null,"Koc (L/kg)","EU Endpunkt (arithmetisches oder geometrisches Mittel)",null,"Ggf. neue Daten berücksichtigen, falls relevant laut \"data matching\", dann geometrisches Mittel","- Expositionsberechnung: bestimmt Wirkstoffaustrag via Runoff bzw. Erosion\n- Auswahl der Gefährdungsgruppe Grundwasser"]
[null,"►","Gefährdungsgruppe","Konzept siehe Blatt \"Gefährdungsgruppe\"",null,null,"- bestimmt Eliminationsrate der Uferfiltration (default Wirkstoffe)"]
[null,null,null,null,null,null,"- bestimmt Wirkstoffaustrag via Drainage"]
[null,null,"Anwendung"]
[]
[null,null,"AWM a.i. (g/ha)","Einfachanwendung:",null,"-","- bestimmt bodenverfügbare Wirkstoffmenge"]
[null,null,null,"Aufwandmenge der einfachen Anwendung"]
[null,null,"Mehrfachapplikation (g/ha)","Mehrfachanwendung: "]
[null,null,null,"Maximal auftretender Rückstand unter Berücksichtigung des Abbaus"]
[null,null,"Interzeption (%)","gemäß FOCUS Grundwasser",null,"kann zwischen den Anwendungszeitpunkten variieren","- bestimmt bodenverfügbare Wirkstoffmenge abhängig von Kulturart und Entwicklungsstadium"]
[null,null,"Intervall (d)","-",null,"Berücksichtigung von 1 bis 10 Anwendungen des Wirkstoffs pro Jahr","- bestimmt bodenverfügbare Wirkstoffmenge"]
[null,null,null,null,null,null,"- berücksichtigt Wirkstoffabbau zwischen den Einzelapplikationen"]
[]
[null,null,"Ökotoxikologische Daten"]
[]
[null,null,"Wert (µg/L)","niedrigster bewertungsrelevanter Effektwert für die empfindlichste aquatische Spezies oder Lebensgemeinschaft",null," - µg/L (Runoff)\nfür Auswirkungen auf Fische, Algen oder höhere Wasserpflanzen bei Einträgen via Runoff (an erodierte Bodenpartikel gebundene Wirkstoffanteile werden als nicht verfügbar angesehen)\n"," - Die TER-Berechnung für Einträge via Runoff erfolgt auf der Basis der PEC ini Runoff."]
[]
[]
[null,null,null,null,null," - µg/L (Gesamtaustrag)                                                                                                                                                                                                                                                                für Auswirkungen auf Invertebraten bei Einträgen via Runoff (an erodierte Bodenpartikel gebundene Wirkstoffanteile werden als potenziell verfügbar angesehen)"," - Die TER-Berechnung für Einträge via Runoff erfolgt auf der Basis der PEC ini Gesamtaustrag. Es kann die PEC ini Runoff verwendet werden, wenn eine signifikant verringerte Verfügbarkeit und ökotoxikologische Wirksamkeit an Partikel gebundener Wirkstoffanteile im Einzelfall belegt werden kann. Bei Wirkstoffen mit einem Koc > 50000 kann eine hinreichend verringerte Verfügbarkeit ohne weitere Prüfung angenommen werden."]
[null,null,null,null,null,"- µg/L (Runoff/Gesamtaustrag)\nAuswahl nicht relevant für die Bewertung von Einträgen via Drainage"]
[null,null,"TER","abhängig von Spezies und Endpunkt",null,"-"]
[null,null,"Szenario"]
[]
[null,null,"Niederschlag nach (d)","3 d",null,"Granulate: 0 d                                        Metaboliten: 0 d","- bestimmt bodenverfügbare Wirkstoffmenge             - berücksichtigt Wirkstoffabbau bis zum Regenereignis"]
[null,null,"Austrag in (%) der AWM über Runoff","Koc abhängiger Anteil der bodenverfügbaren Wirkstoffmenge, der über Runoff ausgetragen wird",null,"-","- bestimmt wasserverfügbaren Wirkstoffanteil im Oberflächengewässer"]
[null,null,"Austrag in (%) der AWM über Erosion","Koc abhängiger Anteil der bodenverfügbaren Wirkstoffmenge, der über Erosion ausgetragen wird",null,"-","-"]
[]
[null,null,"Bewertungsansatz"]
[null,"►","Eintragspfad Runoff und Erosion"]
[null,"►","Eintragspfad Drainage"]
[null,"►","Eintragspfad Uferfiltration"]
[null,"►","Metabolite"]
[]
[null,"►","Blatt \"Berechnung\": Übersicht der zu Grunde liegenden Formeln"]

{"sheet":"Exposit","index":1,"n_rows":42,"n_cols":33,"rows_kept":42,"cut":false,"hidden":false,"merged":[[16,2,16,7],[1,9,1,11],[24,2,25,3],[25,11,25,12],[7,10,7,11],[26,11,26,12],[34,11,34,12],[35,11,35,12],[36,11,36,12],[28,11,28,12],[27,11,27,12],[29,11,29,12],[30,11,30,12],[31,11,31,12],[32,11,32,12]]}
["◄","Allgemeine Daten",null,null,null,null,null,null,null,"Anwendung"]
[null,"ZA-Nr.",null,null,null,null,null,null,null,1,null,null,null,"Anwendung pro Jahr (max.10)",4]
[null,"PSM",null,null,null,null,null,null,null,"AWM a.i. (g/ha)",null,900,null,"Intervall (d)",14,null,"Anwendung:",1,2,3,4,5,6,7,8,9,10]
[null,"Wirkstoff",14,null,null,null,null,null,null,"Interzeption (%)",null,70,null,"DT50 (d)",{"$f":"C9","v":121},null,"AWM a.i. (g/ha)",500,500,500,500,0,0,0,0,0,0]
[null,null,null,null,null,null,null,null,null,null,null,null,null,"Maximal Rückstand (g/ha)",{"$f":"MAX(Mehrfachapplikation!C16:L16)","v":512.75035141513149},null,"Interzeption (%):",50,70,70,90,0,0,0,0,0,0]
[]
[null,"Stoffdaten",null,null,{"$f":"IF(C11=1,\"Grundwassergefährdungspotential gering\",IF(C11=2,\"Grundwassergefährdung gegeben\",IF(C11=3,\"Grundwassergefährdung möglich \",\"Grundwassergefährdungspotential gering\")))","v":"Grundwassergefährdungspotential gering"},null,null,null,null,"Ökotoxikologische Daten",null,null,null,null,"Interzeption berücksichtigt"]
[null,"Koc (L/kg)",3000,null,">>500","<500","<<500","<100",null,"Spezies",null,null,null,null,null,null,null,null,null,null,null,null,null,null,null,null,null,null,null,null,null,null,"µg/L (Runoff)"]
[null,"DT50 (d)",121,null,">100",">21","<21>","<<21",null,"Wert",1,3,null,null,null,null,null,null,null,null,null,null,null,null,null,null,null,null,null,null,null,null,"µg/L (Gesamtaustrag)"]
[null,"L H20 (mg/L)",2,null,"<1","<100",">>100",">>100",null,"TER",null,3]
[null,"Gefährdungsgruppe",1,null,1,2,3,4]
[null,"≈ Eliminationsrate (%)",{"$f":"INDEX('Konzept Uferfiltration'!H23:H37,Exposit!C4)","v":100},null,null,null,null,null,null,"Szenario"]
[null,null,null,null,null,null,null,null,null,"Niederschlag nach (d)",null,3,{"$f":"IF(L13=3,\" \",\"Achtung! Entspricht nicht Standardeinstellung!\")","v":" "}]
[null,null,"f",{"$f":"IF(C12=75,\" \",IF(C12=90,\" \",IF(C12=100,\" \",IF(C12=\"\",\"\",\"Achtung!\"))))","v":" "},null,null,null,null,null,"Austrag in (%) der AWM über Runoff",null,{"$f":"'Konzept Runoff'!J33","v":8.4000000000000005E-2}]
[null,null,null,{"$f":"IF(C12=75,\" \",IF(C12=90,\" \",IF(C12=100,\" \",IF(C12=\"\",\"\",\"Entspricht nicht Standardeinstellung!\"))))","v":" "},null,null,null,null,null,"Austrag in (%) der AWM über Erosion",null,{"$f":"'Konzept Runoff'!K33","v":9.0999999999999998E-2}]
[]
[null,null,"Runoff und Erosion"]
[null,null,"Randstreifen (m)",null,0,5,10,20]
[null,null,"Reduktion Runoffaustrag (%)",null,0,40,60,80]
[null,null,"Reduktion Erosionsaustrag (%)",null,0,40,85,95]
[null,null,"Austrag Wasser (m3)",null,{"$f":"100*(1-E19)","v":100},{"$f":"100*(1-F19/100)","v":60},{"$f":"100*(1-G19/100)","v":40},{"$f":"100*(1-H19/100)","v":19.999999999999996}]
[null,null,"Grabenwasser (m3)",null,{"$f":"E21+30","v":130},{"$f":"F21+30","v":90},70,{"$f":"H21+30","v":50}]
[null,null,"VerdünnungGraben (m3)",null,{"$f":"E22*2","v":260},{"$f":"F22*2","v":180},140,{"$f":"H22*2","v":100}]
[]
[null,null,"Rückstand zum Zeitpunkt des  Niederschlagsereignisses (g/ha)",null,null,null,null,null,null,null,"Drainage"]
[null,null,null,null,{"$f":"IF(J2>1,(O5)*EXP(-(LN(2)/C9)*L13),IF(J2=1,(L3*(100-(L4))/100)*EXP(-(LN(2)/C9)*L13)))","v":265.39956734889734},null,null,null,null,null,"Frühjahr","Herbst"]
[null,null,"Runoff (mg)",null,{"$f":"$E$26*$L$14/100*1000*(1-E19/100)","v":222.93563657307377},{"$f":"$E$26*$L$14/100*1000*(1-F19/100)","v":133.76138194384424},89.174254629229509,44.58712731461474,null,null,"        -  Sommer"," - Winter"]
[null,null,"Erosion (mg)",null,{"$f":"$E$26*$L$15/100*1000*(1-E20/100)","v":241.51360628749657},{"$f":"$E$26*$L$15/100*1000*(1-F20/100)","v":144.90816377249794},36.227040943124493,12.075680314374839,null,null,"(April - Oktober)","(November- März)"]
[]
[null,"Grundwasser","PEC ini Runoff (µg/L)",null,{"$f":"(E27)/E23","v":0.8574447560502837},{"$f":"(F27)/F23","v":0.74311878857691249},0.63695896163735366,0.44587127314614738,null,"PEC ini Graben (µg/L)",{"$f":"IF(C11=1,'Konzept Drainage'!H35,'Konzept Drainage'!H43)","v":4.1468682398265212E-2},{"$f":"IF(C11=1,'Konzept Drainage'!Q35,'Konzept Drainage'!Q43)","v":0.12759594584081604}]
[null,null,"PEC ini Fließgewässer (µg/L)",null,{"$f":"E30/12.5","v":6.85955804840227E-2},{"$f":"F30/12.5","v":5.9449503086153002E-2},5.0956716930988293E-2,3.5669701851691792E-2,null,"PEC ini Fließgewässer (µg/L)",{"$f":"K30/12.5","v":3.317494591861217E-3},{"$f":"L30/12.5","v":1.0207675667265284E-2}]
[null,null,"PEC ini Uferfiltrat (µg/L)",null,{"$f":"IF(AND($C$12=\"eingeben:\",$C$14=\"\"),\"Fehler!\",IF('Konzept Uferfiltration'!$K$23=\"andere Eliminationsrate\",E31*(100-$C$14)/100,E31*(100-$C$12)/100))","v":0},{"$f":"IF(AND($C$12=\"eingeben:\",$C$14=\"\"),\"Fehler!\",IF('Konzept Uferfiltration'!$K$23=\"andere Eliminationsrate\",F31*(100-$C$14)/100,F31*(100-$C$12)/100))","v":0},{"$f":"IF(AND($C$12=\"eingeben:\",$C$14=\"\"),\"Fehler!\",IF('Konzept Uferfiltration'!$K$23=\"andere Eliminationsrate\",G31*(100-$C$14)/100,G31*(100-$C$12)/100))","v":0},{"$f":"IF(AND($C$12=\"eingeben:\",$C$14=\"\"),\"Fehler!\",IF('Konzept Uferfiltration'!$K$23=\"andere Eliminationsrate\",H31*(100-$C$14)/100,H31*(100-$C$12)/100))","v":0},null,"PEC ini Uferfiltrat (µg/L)",{"$f":"IF(AND(C12=\"eingeben:\",C14=\"\"),\"Fehler!\",IF('Konzept Uferfiltration'!K23=\"andere Eliminationsrate\",K31*(100-$C$14)/100,K31*(100-$C$12)/100))","v":0},{"$f":"IF(AND(D13=\"eingeben:\",D14=\"\"),\"Fehler!\",IF('Konzept Uferfiltration'!L23=\"andere Eliminationsrate\",L31*(100-$C$14)/100,L31*(100-$C$12)/100))","v":0}]
[null,null,null,null,{"$f":"IF(E32=\"Fehler!\",\"\",IF(E32>=0.1,\"> 0.1 µg/l\",\"ok\"))","v":"ok"},{"$f":"IF(F32=\"Fehler!\",\"\",IF(F32>=0.1,\"> 0.1 µg/l\",\"ok\"))","v":"ok"},{"$f":"IF(G32=\"Fehler!\",\"\",IF(G32>=0.1,\"> 0.1 µg/l\",\"ok\"))","v":"ok"},{"$f":"IF(H32=\"Fehler!\",\"\",IF(H32>=0.1,\"> 0.1 µg/l\",\"ok\"))","v":"ok"},null,null,{"$f":"IF(K32=\"Fehler!\",\"\",IF(K32>=0.1,\"> 0.1 µg/l\",\"ok\"))","v":"ok"},{"$f":"IF(L32=\"Fehler!\",\"\",IF(L32>=0.1,\"> 0.1 µg/l\",\"ok\"))","v":"ok"}]
[]
[null,"Aquatische Biozönose","PEC ini Runoff (µg/L)",null,{"$f":"E27/E23","v":0.8574447560502837},{"$f":"F27/F23","v":0.74311878857691249},{"$f":"G27/G23","v":0.63695896163735366},{"$f":"H27/H23","v":0.44587127314614738},null,"PEC ini Graben (µg/L)",{"$f":"K30","v":4.1468682398265212E-2},{"$f":"L30","v":0.12759594584081604}]
[null,null,"TER Graben",null,{"$f":"$L$9/E35","v":3.4987676801700203},{"$f":"$L$9/F35","v":4.037039630965408},4.709879569459642,6.7283993849423487,null,"TER Graben",{"$f":"$L$9/K30","v":72.34375018690011},{"$f":"$L$9/L30","v":23.511718810742533}]
[null,null,null,null,{"$f":"IF(AND(E36<$L$10,$L$10=100),\"<100\",IF(AND(E36<$L$10,$L$10=10),\"<10\",IF(E36<$L$10,$L$10,\"ok\")))","v":"ok"},{"$f":"IF(AND(F36<$L$10,$L$10=100),\"<100\",IF(AND(F36<$L$10,$L$10=10),\"<10\",IF(F36<$L$10,$L$10,\"ok\")))","v":"ok"},{"$f":"IF(AND(G36<$L$10,$L$10=100),\"<100\",IF(AND(G36<$L$10,$L$10=10),\"<10\",IF(G36<$L$10,$L$10,\"ok\")))","v":"ok"},{"$f":"IF(AND(H36<$L$10,$L$10=100),\"<100\",IF(AND(H36<$L$10,$L$10=10),\"<10\",IF(H36<$L$10,$L$10,\"ok\")))","v":"ok"},null,null,{"$f":"IF(AND(K36<$L$10,$L$10=100),\"<100\",IF(AND(K36<$L$10,$L$10=10),\"<10\",IF(K36<$L$10,$L$10,\"ok\")))","v":"ok"},{"$f":"IF(AND(L36<$L$10,$L$10=100),\"<100\",IF(AND(L36<$L$10,$L$10=10),\"<10\",IF(L36<$L$10,$L$10,\"ok\")))","v":"ok"},null,{"$f":"IF(OR(E36<L10,F36<L10,G36<L10,H36<L10,K36<L10,L36<L10),\"Achtung! \",\" \")","v":" "}]
[null,null,null,null,null,null,null,null,null,null,null,null,null,{"$f":"IF(OR(E36<L10,F36<L10,G36<L10,H36<L10,K36<L10,L36<L10),\"Bewertungsrelevanter TER unterschritten!\",\" \")","v":" "}]
[null,null,"PEC ini Gesamtaustrag (µg/L)",null,{"$f":"(E27+E28)/E23","v":1.7863432417714245},{"$f":"(F27+F28)/F23","v":1.548164142868568},{"$f":"(G27+G28)/G23","v":0.89572353980252861},{"$f":"(H27+H28)/H23","v":0.56662807628989587}]
[null,null,"TER Graben",null,{"$f":"$L$9/E39","v":1.6794084864816097},{"$f":"$L$9/F39","v":1.9377790228633955},3.3492476938379676,5.2944782045447969]
[null,null,null,null,{"$f":"IF(AND(E40<$L$10,$L$10=100),\"<100\",IF(AND(E40<$L$10,$L$10=10),\"<10\",IF(E40<$L$10,L10,\"ok\")))","v":3},{"$f":"IF(AND(F40<$L$10,$L$10=100),\"<100\",IF(AND(F40<$L$10,$L$10=10),\"<10\",IF(F40<$L$10,$L$10,\"ok\")))","v":3},{"$f":"IF(AND(G40<$L$10,$L$10=100),\"<100\",IF(AND(G40<$L$10,$L$10=10),\"<10\",IF(G40<$L$10,$L$10,\"ok\")))","v":"ok"},{"$f":"IF(AND(H40<$L$10,$L$10=100),\"<100\",IF(AND(H40<$L$10,$L$10=10),\"<10\",IF(H40<$L$10,$L$10,\"ok\")))","v":"ok"},null,{"$f":"IF(OR(E40<L10,F40<L10,G40<L10,H40<L10),\"Achtung!\",\" \")","v":"Achtung!"}]
[null,null,null,null,null,null,null,null,null,{"$f":"IF(OR(E40<L10,F40<L10,G40<L10,H40<L10),\"Bewertungsrelevanter TER unterschritten!\",\" \")","v":"Bewertungsrelevanter TER unterschritten!"}]

{"sheet":"Report","index":2,"n_rows":29,"n_cols":8,"rows_kept":29,"cut":false,"hidden":false,"merged":[[6,3,7,3],[6,4,7,4],[6,6,7,6],[19,1,19,3],[25,1,25,3],[12,1,12,2],[12,3,12,6],[4,1,7,1],[4,3,4,6],[5,3,5,4],[5,5,5,6],[6,5,7,5],[8,1,11,1],[8,2,11,2],[8,5,9,5],[8,6,9,6],[10,6,11,6],[19,5,19,7],[25,5,25,7],[4,2,7,2]]}
[]
[]
[null,"für NA Section 8"]
[]
[null,"Use No.","Application rate /\ninterception","PECgw due to"]
[null,null,null,"Runoff",null,"Drainage"]
[null,null,null,"Vegetated buffer strip\n(m)","Bank filtrate\n\n(µg/L)","Time of application","Bank filtrate\n\n(µg/L)"]
[]
[null,null,null,0,{"$f":"Exposit!E32","v":0},"spring/summer ",{"$f":"Exposit!K32","v":0}]
[null,null,null,5,{"$f":"Exposit!F32","v":0}]
[null,null,null,10,{"$f":"Exposit!G32","v":0},"autumn/winter/",{"$f":"Exposit!L32","v":0}]
[null,null,null,20,{"$f":"Exposit!H32","v":0},"early spring "]
[null,"Required labelling",null,"…"]
[]
[]
[]
[]
[null,"für NA Section 9"]
[null,"Fall1: Bewertung auf Runoff",null,null,null,"Fall2: Bewertung auf Gesamtaustrag"]
[null,"Runoff",null,null,null,"Runoff + erosion"]
[null,"Buffer zone (m)","PEC\n(µg/L)","TER ",null,"Buffer zone (m)","PEC \n(µg/L)","TER "]
[null,0,{"$f":"Exposit!E35","v":0.8574447560502837},{"$f":"Exposit!E36","v":3.4987676801700203},null,0,{"$f":"Exposit!E39","v":1.7863432417714245},{"$f":"Exposit!E40","v":1.6794084864816097}]
[null,5,{"$f":"Exposit!F35","v":0.74311878857691249},{"$f":"Exposit!F36","v":4.037039630965408},null,5,{"$f":"Exposit!F39","v":1.548164142868568},{"$f":"Exposit!F40","v":1.9377790228633955}]
[null,10,{"$f":"Exposit!G35","v":0.63695896163735366},{"$f":"Exposit!G36","v":4.709879569459642},null,10,{"$f":"Exposit!G39","v":0.89572353980252861},{"$f":"Exposit!G40","v":3.3492476938379676}]
[null,20,{"$f":"Exposit!H35","v":0.44587127314614738},{"$f":"Exposit!H36","v":6.7283993849423487},null,20,{"$f":"Exposit!H39","v":0.56662807628989587},{"$f":"Exposit!H40","v":5.2944782045447969}]
[null,"Drainage",null,null,null,"Drainage"]
[null,"Time of application","PEC \n(µg/L)","TER ",null,"Time of application","PEC\n(µg/L)","TER "]
[null,"Spring/summer",{"$f":"Exposit!K35","v":4.1468682398265212E-2},{"$f":"Exposit!K36","v":72.34375018690011},null,"Spring/summer",{"$f":"Exposit!K35","v":4.1468682398265212E-2},{"$f":"Exposit!K36","v":72.34375018690011}]
[null,"Autumn/winter",{"$f":"Exposit!L35","v":0.12759594584081604},{"$f":"Exposit!L36","v":23.511718810742533},null,"Autumn/winter",{"$f":"Exposit!L35","v":0.12759594584081604},{"$f":"Exposit!L36","v":23.511718810742533}]

{"sheet":"90. Perz","index":3,"n_rows":3,"n_cols":3,"rows_kept":3,"cut":false,"hidden":false,"merged":[]}
["Berechnung des 90. Perzentils der DT50-Werte (nur zu verwenden bei Laborstudien und entsprechender Datenzahl, siehe Übersicht)"]
["DT50"]
[null,"90. Perzentil: ",{"$f":"IF(A3=\"\",\"\",PERCENTILE(A:A, 0.9))","v":""}]

{"sheet":"Metabolit","index":4,"n_rows":13,"n_cols":4,"rows_kept":13,"cut":false,"hidden":false,"merged":[[11,1,11,8],[12,1,12,8],[13,1,13,8],[14,1,14,8],[10,1,10,8]]}
["◄"]
[null,"Berechnung AWM für Metaboliten"]
[]
[null,null,"Wirkstoff","Metabolit"]
[null,"Molare Masse (g/mol)",416.3,209.1]
[null,"Mol Korrekturfaktor",null,{"$f":"D5/C5","v":0.50228200816718704}]
[null,"Maximale Bildungsrate (%)",null,100]
[null,"AWM a.i. (g/ha)",100,{"$f":"D5/C5*C8*(D7/100)","v":50.228200816718704}]
[]
[null,"Hinweis:"]
[null,"- Zu betrachten sind die potentiell relevanten Metaboliten aus Bodenabbaustudien, d. h. Metaboliten mit maximaler Bildung von > 10 %, 2 x > 5% (aufeinanderfolgend) und Metaboliten, die zum Testende ansteigen und zu diesem Zeitpunkt > 5 % betragen."]
[null,"- Die maximalen Bildungsraten für die einzelnen Metaboliten werden zur Korrektur der bodenverfügbaren AWM des Metaboliten verwendet. "]
[null,"- In Exposit ist für den Eintritt des Regenereignisses der default-Wert von 3 d auf 0 d zu setzen, da der zeitliche Abstand zwischen Bildung des Metaboliten und Eintritt des Regenereignisses  nicht bestimmbar ist."]

{"sheet":"Konzept Runoff","index":5,"n_rows":65,"n_cols":15,"rows_kept":65,"cut":false,"hidden":false,"merged":[[54,3,55,15],[62,3,62,15],[51,4,51,5],[51,6,51,7],[51,12,51,13],[51,14,51,15],[52,12,52,13],[52,14,52,15],[49,4,49,5],[49,6,49,7],[49,12,49,13],[49,14,49,15],[50,4,50,5],[50,6,50,7],[50,12,50,13],[50,14,50,15],[47,4,47,5],[47,6,47,7],[47,12,47,13],[47,14,47,15],[48,4,48,5],[48,6,48,7],[48,12,48,13],[48,14,48,15],[46,3,46,7],[46,11,46,15],[33,3,33,15],[13,3,13,15],[16,3,16,15],[17,3,17,15],[18,4,18,6],[45,3,45,15]]}
["◄"]
[null,"Bewertungskonzept Runoff"]
[]
[null,"Schlaggröße/"]
[null,"Applikationsfläche:",null,"1 ha (100 m * 100 m)"]
[]
[null,"Zeitraum zwischen",null,"3 d (default)"]
[null,"Applikation und"]
[null,"Regenereignis"]
[]
[null,"Mehrfachapplikation",null,"Für das Runoff-auslösendene Niederschlagsereignis wird angenommen, das es bei Mehrfachapplikation erst nach der letzten Applikation auftritt."]
[null,null,null,"Der Abbau im Boden zwischen den Einzelanwendungen wird berücksichtigt (SFO Kinetik)."]
[]
[null,"Niederschlag:",null,"Ergiebiger Regen von 20 mm innerhalb von 24 h (200 m3); davon 9 mm als sog. Berechnungsregen (Starkregen von 100 L/(s x ha); 15 min Regendauer; Häufigkeit einmal pro Jahr), um auch partikelgebundene Wirkstoffe aus der Behandlungsfläche auszutragen."]
[null,"Wasserabfluss:",null,"Runoff: 50 % des Niederschlags (10 mm, 100 m3)"]
[]
[null,"Austrag: (Stoßbelastung)",null,"Sämtliche Böden kleiner Korngrößen (Löß, Marschböden), grundwassernahe und verdichtete Böden neigen auch im ebenen / fast ebenem Gelände zu Runoff. Für die Runoff-gefährdeten Flächen kann im worst case ein konstanter, standortunabhängiger Wirkstofftransport angenommen werden."]
[null,null,null,"Prozentualer Austrag der applizierten Wirkstoffmenge bei Stoßbelastung. Die Austragsfaktoren werden nach Reichenberger et al. (2007) unterschieden in Austräge über Runoff (gelöste Phase) und Erosion (partikelgebundene Phase). \nEine weitere Unterteilung der probabilistischen PRZM-Modellierungsergebnisse erfolgt über die ermittelte Abhängigkeit zwischen Verfügbarkeit von Wirkstoffen im Boden und Koc. Dabei geht die Runoff-Verfügbarkeit mit steigender Sorption zurück, d.h. der Wirkstoffanteil in der gelösten Phase sinkt. Im Gegensatz zum Runoffaustrag nehmen die Erosionsausträge mit steigendem Koc stetig zu. \nDie Trennung der Eintragspfade Runoff und Erosion wird anhand von 12 Koc-Klassen unter Verwendung des 90. Perzentils der maximal täglichen Runoff- sowie Erosionsausträge vorgenommen:\n"]
[null,null,null,null,"Austrag in % der Aufwandmenge"]
[null,null,null,"Koc-Klasse in L/kg","Runoff","Erosion","(Gesamt)"]
[null,null,null,"0-20",0.11,0,{"$f":"E21+F21","v":0.11},null,{"$f":"IF(Exposit!C8<=20,1,0)","v":0},{"$f":"I21*E21","v":0},{"$f":"I21*F21","v":0}]
[null,null,null,">20-50",0.151,0,{"$f":"E22+F22","v":0.151},null,{"$f":"IF(AND(Exposit!$C$8>20,Exposit!$C$8<=50),1,0)","v":0},{"$f":"I22*E22","v":0},{"$f":"I22*F22","v":0}]
[null,null,null,">50-100",0.19700000000000001,0,0.19700000000000001,null,{"$f":"IF(AND(Exposit!$C$8>50,Exposit!$C$8<=100),1,0)","v":0},0,0]
[null,null,null,">100-200",0.248,1E-3,0.249,null,{"$f":"IF(AND(Exposit!$C$8>100,Exposit!$C$8<=200),1,0)","v":0},0,0]
[null,null,null,">200-500",0.224,4.0000000000000001E-3,0.22800000000000001,null,{"$f":"IF(AND(Exposit!$C$8>200,Exposit!$C$8<=500),1,0)","v":0},0,0]
[null,null,null,">500-1000",0.184,0.02,0.20399999999999999,null,{"$f":"IF(AND(Exposit!$C$8>500,Exposit!$C$8<=1000),1,0)","v":0},0,0]
[null,null,null,">1000-2000",0.13300000000000001,4.2000000000000003E-2,0.17500000000000002,null,{"$f":"IF(AND(Exposit!$C$8>1000,Exposit!$C$8<=2000),1,0)","v":0},0,0]
[null,null,null,">2000-5000",8.4000000000000005E-2,9.0999999999999998E-2,0.17499999999999999,null,{"$f":"IF(AND(Exposit!$C$8>2000,Exposit!$C$8<=5000),1,0)","v":1},8.4000000000000005E-2,9.0999999999999998E-2]
[null,null,null,">5000-10000",3.6999999999999998E-2,0.159,0.19600000000000001,null,{"$f":"IF(AND(Exposit!$C$8>5000,Exposit!$C$8<=10000),1,0)","v":0},0,0]
[null,null,null,">10000-20000",3.1E-2,0.192,0.223,null,{"$f":"IF(AND(Exposit!$C$8>10000,Exposit!$C$8<=20000),1,0)","v":0},0,0]
[null,null,null,">20000-50000",1.4E-2,0.29099999999999998,0.30499999999999999,null,{"$f":"IF(AND(Exposit!$C$8>20000,Exposit!$C$8<=50000),1,0)","v":0},0,0]
[null,null,null,">50000",1E-3,0.45100000000000001,0.45200000000000001,null,{"$f":"IF(Exposit!$C$8>50000,1,0)","v":0},0,0]
[null,null,null,null,null,null,null,null,null,{"$f":"SUM(J21:J32)","v":8.4000000000000005E-2},{"$f":"SUM(K21:K32)","v":9.0999999999999998E-2}]
[null,null,null,"Referenz: Reichenberger, S.; Bach, M.; Frede, H.-G. (2007): Auswertung der prädiktiven PRZM-Simulationen aus Reichenberger (2005) zum Austrag von PSM-Wirkstoffen über Runoff und Erosion in Deutschland. Dokumentation für den Industrieverband Agrar (IVA). Finale Version vom 10.08.2007. Univ. Gießen"]
[]
[null,"Gewässer:",null,"Parallel zur Applikationsfläche verlaufender Graben "]
[null,null,null,"Breite: 100 cm; Wassertiefe: 30 cm; Volumen 30 m³; max. Aufnahmevolumen > 130 m³"]
[null,null,null,"Während des Niederschlagsereignisses wird ein Fließen des Grabenwassers unterstellt. Angenommen wird hier eine Verdünnung von 1 : 2. "]
[]
[null,"Sediment:",null,"Sedimenttiefe: 0,05 m, Breite: 1 m, Länge: 100 m, Sedimentdichte: 1300 kg/m³"]
[null,null,null,"Masse an Sediment: 6500 kg ( = S-Tiefe * S-Breite * S-Länge * S-Dichte)"]
[]
[null,"Randstreifen:",null,"Diffuse Verteilung des Abflusses auf Pufferfläche; dauerhafter und dichter Bewuchs; nicht verdichtet und durch Fahrspuren beeinträchtigt. "]
[null,null,null,"Es wird vorausgesetzt, dass schonende Bodenbearbeitung quer zum Hang erfolgt."]
[]
[null,null,null,"Um den Einfluss bewachsener Randstreifen auf die Reduzierung des Oberflächenabflusses und PSM-Einträgen in der Modellierung berücksichtigen zu können, wurden in der Literatur verfügbare europaweite Untersuchungen von der FOCUS \"Working Group on Landscape and Mitigation\" in Abhängigkeit der Filterlänge und je Eintragspfad statistisch ausgewertet, wobei festzustellen ist, dass die Anzahl der Datenpunkte je Randtreifenbreite oft sehr klein ist und stark streut. \nDie Ergebnisse zeigen für mobile, gelöste Wirkstoffe (n=12) einen geringeren Rückhalt als für weniger mobile, partikelgebundene Substanzen (n=11). Für eine konservative Bewertung wurde daher analog FOCUS (2007) das 90. Perzentil der gemessenen Reduktionsleistungen in EXPOSIT eingestellt (siehe Tabelle 1).\nIm Vergleich zum bisherigen Vorgehen in EXPOSIT werden mit der Verwendung der EU-weiten Daten die bisherigen Untersuchungsergebnisse nach Klöppel et al. (1997) auf eine breitere Datenbasis gestellt."]
[null,null,null,"Tabelle 1: Reduzierungsleistung von Randstreifen für die Abschätzung \nder Vermindung von PSM-Einträgen über die Eintragspfade Runoff bzw. Erosion",null,null,null,null,null,null,null,"Tabelle 2: Datenbasis zur Abschätzung des PSM-Rückhaltevermögens \nin Randstreifen je Eintragspfad aus europaweiten Untersuchungen"]
[null,null,null,"Breite der Randstreifen","Reduktion des wasser-verfügbaren PSM-Anteils und des Runoff-Volumens um",null,"Reduktion des erosionbedingten sedimentgebundenen PSM-Anteils um",null,null,null,null,"Breite der verwendeten Randstreifen","Anzahl der Messdaten für Runoff-Einträge",null,"Anzahl der Messdaten für Erosion-Einträge"]
[null,null,null,"0 m","0 %",null,"0 %",null,null,null,null,"Summe (1-20 m)",107,null,76]
[null,null,null,"5 m ","40 %",null,"40 %",null,null,null,null,"5 m (4-6 m) ",25,null,29]
[null,null,null,"10 m","60 %",null,"85 %",null,null,null,null,"10 m (10-12 m)",36,null,19]
[null,null,null,"20 m","80 %",null,"95 %",null,null,null,null,"20 m (15-20 m)",30,null,11]
[null,null,null,null,null,null,null,null,null,null,null,"Anzahl Wirkstoffe",12,null,11]
[]
[null,null,null,"Referenz: FOCUS (2007): Final Report of the FOCUS Working Group on Landscape and Mitigation Factors in Ecological Risk Assessment (SANCO/10422/2005, version 2.0, September 2007). Reduzierungsleistungen von 5 m breiten Randstreifen basieren auf erneuter Auswertung der o.g. Datengrundlage (FOCUS L&M, 2007) durch AK Ökochemie (Unterarbeitsgruppe Runoff UBA/IVA, 2010)"]
[]
[]
[null,"Ergebnis:",null,"PEC Runoff (µg/L): Anteil der Wirkstoffmenge, der über Runoff in das Gewässer gelangt (wird als wasserverfügbarer Anteil betrachtet). "]
[null,null,null,"Für den Anteil der Wirkstoffmenge, der über Erosion eingetragen wird, wird vereinfachend angenommen, dass er ins Sediment eingebunden und nicht verfügbar ist."]
[null,null,null,"In Verbindung mit ökotoxikologischen Tests in Wasser-Sediment-Systemen kann die PEC Runoff nur dort für Invertebraten berücksichtigt werden, wo ein intensiver "]
[null,null,null,"Kontakt zwischen den Testtieren und Sediment bzw. wirkstoffbeladenen Partikeln gegeben ist."]
[]
[null,null,null,"PEC Gesamtaustrag (µg/L): Gesamteintrag des Wirkstoffs, der über Runoff und Erosion in das Gewässer gelangt."]
[null,null,null,"Im Hinblick auf Auswirkungen auf Invertebraten werden an erodierte Bodenpartikel gebundene Wirkstoffanteile als potenziell verfügbar angesehen, soweit nicht"]
[null,null,null,"eine signifikant verringerte Verfügbarkeit und ökotoxikologische Wirksamkeit im Einzelfall belegt werden kann."]

{"sheet":"Konzept Drainage","index":6,"n_rows":43,"n_cols":18,"rows_kept":43,"cut":false,"hidden":false,"merged":[[13,3,13,12],[16,3,16,12],[18,3,18,12]]}
["h"]
[null,"Bewertungskonzept Drainage"]
[]
[null,"Schlaggröße/",null,"1 ha (100 m * 100 m)"]
[null,"Applikationsfläche"]
[]
[null,"Zeitraum zwischen",null,"3 d (default)"]
[null,"Applikation und",null,"Mehrfachapplikation, Abbau im Boden wird berücksichtigt (SFO Kinetik)"]
[null,"Regenereignis"]
[]
[null,"Niederschlag:",null,"ergiebiger Regen von 20 mm innerhalb von 24 h (200 m3); "]
[null,null,null,"davon 9 mm als sog. Berechnungsregen (Starkregen von 100 L /(s x ha); 15 min Regendauer; Häufigkeit einmal pro Jahr),"]
[]
[null,"Drainageabfluss:",null,"Frühling/Sommer: 5 % des Niederschlages (1 mm, 10 m³)"]
[null,null,null,"Herbst/Winter/zeitiges Frühjahr: 50 % des Niederschlages (10 mm, 100 m³)"]
[]
[null,"Austrag:",null,"Es wird unterschieden zwischen Gesamtabfluss und Stoßbelastung. Der Gesamtabfluss umfasst den PSM-Austrag via Dränage für alle der Applikation folgenden Niederschlagsereignisse. Die Stoßbelastung wird lediglich einem Starkregenereignis von 20 mm zugeordnet. (siehe unten Berechnung der initialen Konzentration im Graben)"]
[]
[null,"Gewässer:",null,"parallel zur Applikationsfläche verlaufender Graben (Breite: 100 cm; Wassertiefe: 30 cm; Volumen 30 m3; max. Aufnahmevolumen > 130 m3) Während des Niederschlagsereignisses wird ein Fließen des Grabenwassers unterstellt. Angenommen wird hier eine Verdünnung von 1 : 2. "]
[]
[null,"Ergebnis:",null,"PEC ini Graben (µg/L)"]
[]
[null,"Berechnung der initialen Konzentration im Graben (PEC ini Graben (µg/L)):"]
[null,null,null,null,"Frühling/Sommer",null,null,null,null,null,null,"Herbst/Winter/zeitiges Frühjahr"]
[null,null,null,null,"(01. April-31. Oktober)",null,null,null,null,null,null,"(01. November-31. März)"]
[]
[null,null,null,"Dränageabfluss","5 % des Niederschlages (10 m3)",null,null,null,null,null,null,"50 % des Niederschlages (100 m3)"]
[]
[null,"Gruppe I"]
[null," PSM geringer Mobilität"]
[null,null,null,"Gesamtaustrag ","0,01 % vom \"Rückstand zum Zeitpunkt des  Niederschlagsereignisses\"",null,null,{"$f":"0.01*Exposit!E26/100","v":2.6539956734889736E-2},"g",null,null,"0,05 % vom \"Rückstand zum Zeitpunkt des  Niederschlagsereignisses\"",null,null,null,null,{"$f":"0.05*Exposit!E26/100","v":0.13269978367444868},"g"]
[null,null,null,"Stoßbelastung","12,5 % des Gesamtaustrags (0,00125 % der appl. Menge) ",null,null,{"$f":"H31*12.5/100","v":3.317494591861217E-3},"g",null,null,"25 % des Gesamtaustrags (0,0125 % der appl. Menge) ",null,null,null,null,{"$f":"Q31*25/100","v":3.317494591861217E-2},"g"]
[]
[null,null,null,"Grabenwasser","40 m3 (4000 L) = 30 m³ + 10 m³ Drainageabfluss",null,null,{"$f":"H32/0.04","v":8.2937364796530424E-2},"µg/l",null,null,"130 m3 (130000 L) = 30 m³+100 m³ Drainageabfluss",null,null,null,null,{"$f":"Q32/0.13","v":0.25519189168163209},"µg/l"]
[null,null,null,"Verdng. 1 : 2","80 m3 (8000 L) --> PEC ini Graben (µg/L)",null,null,{"$f":"H34/2","v":4.1468682398265212E-2},"µg/l",null,null,"260 m3 (260000 L)  --> PEC ini Graben (µg/L)",null,null,null,null,{"$f":"Q34/2","v":0.12759594584081604},"µg/l"]
[]
[null,"Gruppe II, III u. IV"]
[null," PSM mäßiger bis hoher Mobilität"]
[null,null,null,"Gesamtaustrag ","0,2 % vom \"Rückstand zum Zeitpunkt des  Niederschlagsereignisses\"",null,null,{"$f":"0.2*Exposit!E26/100","v":0.53079913469779472},"g",null,null,"1 % vom \"Rückstand zum Zeitpunkt des  Niederschlagsereignisses\"",null,null,null,null,{"$f":"Exposit!E26/100","v":2.6539956734889731},"g"]
[null,null,null,"Stoßbelastung","12,5 % des Gesamtaustrags (0,025 % der appl. Menge) ",null,null,{"$f":"H39*12.5/100","v":6.634989183722434E-2},"g",null,null,"25 % des Gesamtaustrags (0,25 % der appl. Menge) ",null,null,null,null,{"$f":"Q39*25/100","v":0.66349891837224328},"g"]
[]
[null,null,null,"Grabenwasser","40 m3 (4000 L) = 30 m³ + 10 m³ Drainageabfluss",null,null,{"$f":"H40/0.04","v":1.6587472959306084},"µg/l",null,null,"130 m3 (130000 L) = 30 m³+100 m³ Drainageabfluss",null,null,null,null,{"$f":"Q40/0.13","v":5.1038378336326407},"µg/l"]
[null,null,null,"Verdng. 1 : 2","80 m3 (8000 L) --> PEC ini Graben (µg/L)",null,null,{"$f":"H42/2","v":0.82937364796530422},"µg/l",null,null,"260 m3 (260000 L)  --> PEC ini Graben (µg/L)",null,null,null,null,{"$f":"Q42/2","v":2.5519189168163203},"µg/l"]

{"sheet":"Konzept Uferfiltration","index":7,"n_rows":40,"n_cols":12,"rows_kept":40,"cut":false,"hidden":false,"merged":[[5,4,5,10],[16,4,16,14],[38,4,38,14],[39,4,39,14]]}
["◄"]
[null,"Bewertungskonzept Uferfiltration"]
[]
[null,"Initialkonzentration des Wirkstoffs im angrenzenden Graben:",null,null,"PEC ini Runoff / PEC ini Graben (µg/L) über Eintragspfad Run-off / Drainage"]
[]
[null,"Verdünnung des Grabenwassers im Fließgewässer:",null,null,"1 : 12,5 Anteil des Grabenwassers am Oberflächengewässer mit Uferfiltration:        8 %                                  Abbau im anrainenden Graben und Fließgewässer mit Uferfiltration wird nicht berücksichtigt."]
[]
[null,"Ergebnis:",null,null,"PEC ini Fließgewässer (µg/L)"]
[]
[null,"Reduktion in Infiltrationsstrecke ",null,null,"In Abhängigkeit von der Gefährdungsgruppe"]
[null,"(Sediment, Boden, Aquifer)"]
[null,null,null,null,"PSM Gruppe I","100 %"]
[null,null,null,null,"PSM Gruppe II","75 % "]
[null,null,null,null,"PSM Gruppe III","90 %"]
[null,null,null,null,"PSM Gruppe IV","100 %"]
[]
[null,null,null,null,"In dem DVGW-Forschungsbericht „Befunde von Pflanzenschutzmittel in Grund- und Oberflächenwässern und deren Eintragspfade - Bedeutung für die Wasserwirtschaft und das Zulassungsverfahren“ (Sturm et al., 2006, DVGW-Forschungsvorhaben W 1/02/05) wird ein Vergleich der im Modell EXPOSIT enthaltenen Annahmen bezüglich der Uferfiltration (Eliminationsleistung) mit in der Datenbank zum Verhalten organischer Spurenstoffe bei der Uferfiltration (Schmidt, 2005, TZW Karlsruhe) zusammengestellten Uferfiltrationswerten (Messungen) an Fließgewässern durchgeführt. Bei einigen Wirkstoffen zeigen sich große Unterschiede zwischen Modellannahmen und Versuchsergebnissen. Für diese Wirkstoffe zeigten sich z.T. deutlich geringere Wirkstoffreduktionen als die im Modell Exposit angenommenen default-Werte. Für diese herbiziden Wirkstoffe werden geringere Eliminationsraten eingestellt (siehe Tabelle unten)."]
[]
[null,"Ergebnis:",null,null,"PEC ini Uferfiltrat (µg/L)"]
[]
[null,"Eliminationsrate im Uferfiltrat für ausgewählte herbizide Wirkstoffe:"]
[null,null,null,null,"Nr.","Wirkstoff",null,"Eliminationsrate (%)"]
[null,null,null,null,1,"2,4 D",null,91.4,null,"ausgewählt:",{"$f":"INDEX(F23:F37,L23)","v":"anderer Wirkstoff"},{"$f":"Exposit!$C$4","v":14}]
[null,null,null,null,2,"Bentazon",null,5]
[null,null,null,null,3,"Dichlorprop",null,30]
[null,null,null,null,4,"Diuron",null,20.3]
[null,null,null,null,5,"Flufenacet",null,63]
[null,null,null,null,6,"Glyphosat",null,23.5]
[null,null,null,null,7,"Isoproturon",null,21.6]
[null,null,null,null,8,"MCPA",null,74]
[null,null,null,null,9,"Mecoprop",null,20]
[null,null,null,null,10,"Metalaxyl-M",null,75]
[null,null,null,null,11,"Metazachlor",null,73.599999999999994]
[null,null,null,null,12,"S-Metolachlor",null,38]
[null,null,null,null,13,"Terbuthylazin",null,27.5]
[null,null,null,null,14,"anderer Wirkstoff",null,{"$f":"IF(Exposit!$C$11=2,75,IF(Exposit!$C$11=3,90,100))","v":100},null,"Achtung!        ","Eingabe neuer Wirkstoffe mittels \"Zeile einfügen\" vor \"anderer Wirkstoff\", "]
[null,null,null,null,15,"andere Eliminationsrate",null,"eingeben:",null,null,"sonst ist der Makrobezug für alle Wirkstoffe nicht mehr gegeben."]
[]
[null,"Referenz:",null,null,"Schmidt, C. K. (2005): Datenbank zum Verhalten organischer Spurenstoffe bei der Uferfiltration. Technologiezentrum Wasser (TZW) Karlsruhe"]
[null,null,null,null,"Sturm, S.; Kiefer, J.; Eichhorn, E. (2006): Befunde von Pflanzenschutzmitteln in Grund- und Oberflächengewässern und deren Eintragspfade. Bedeutung für die Wasserwirtschaft und das Zulassungsverfahren. DVGW-Forschungsvorhaben W 1/02/05, Karlsruhe"]

{"sheet":"Gefährdungsgruppe","index":8,"n_rows":14,"n_cols":4,"rows_kept":14,"cut":false,"hidden":false,"merged":[[10,1,10,3],[13,1,13,3]]}
["◄"]
[null,"Einteilung der PSM-Wirkstoffe in Gefährdungsgruppen:"]
[]
[null,"Gruppe","Mobilität","Einschätzung des Gefährdungspotentials für Grundwasser (GW)"]
[null,"I","gering","Gefährdung von OFW ist möglich. Im Allgemeinen besteht aber ein geringes Risiko hinsichtlich der Einträge ins GW.  Zulassung ist somit aus Sicht des GW-Schutzes im Regelfall nicht eingeschränkt."]
[null,"II","mäßig","Gefährdungspotential für OFW und GW gegeben (Risikogruppe)! Zulassung ist zum Schutz des GW in der Regel mit Anwendungs-bestimmungen zu verbinden."]
[null,"III","ausgeprägt","Gefährdung von OFW und GW ist möglich. Zulassung ist zum Schutz des GW erforderlichenfalls mit Anwendungsbestimmungen zu verbinden."]
[null,"IV","hoch","Gefährdung von OFW ist möglich. Aus der Sicht des GW-Schutzes ist das Gefährdungspotential gering (schneller Abbau im OFW).  Zulassung ist im Regelfall nicht eingeschränkt."]
[]
[null,"Hinweis:   "]
[null,"1.) Wasserlöslichkeit, Abbau und Sorption erlauben im Allgemeinen eine grobe Unterteilung hinsichtlich der Versickerung (run-off, drainage) und des Verhaltens im Gewässer (bank filtration). Die Gruppenzugehörigkeit wird aber nicht in jedem Fall eindeutig sein, so dass dann ein \"expert judgement\" notwendig wird. Im Zweifelsfall muss also in der Zusammenschau aller Daten entschieden werden."]
[null,"Beispiele:","[L ca. 50 mg/l; DT50 >> 100 d; Koc > 500 (bis 2009)] - Gruppe I"]
[null,null,"[L >> 100 mg/l; DT50 > 21 d; Koc < 500 (251)] - Gruppe III"]
[null,"2.) Die Einordnung eines Wirkstoffs in eine Gefährdungsgruppe hat erstens Einfluss auf die PEC ini im Uferfiltrat, da mit der Festlegung der Gefährdungsgruppen die Reduktion in der Infiltrationsstrecke während der Uferfiltration festgelegt wird (siehe Arbeitsblatt \"Uferfiltration\"). Zweitens bestimmt die Einordnung in eine Gefährdungsgruppe die PEC ini im Graben für den Eintragspfad Drainage. Für Wirkstoffe der Gruppe I sind die Einträge in das Grabenwasser über Drainage geringer als für Wirkstoffe der anderen Gefährdungsgruppen (siehe Arbeitsblatt \"Drainage\")."]

{"sheet":"Berechnung","index":9,"n_rows":30,"n_cols":10,"rows_kept":30,"cut":false,"hidden":false,"merged":[[11,3,12,6],[14,3,15,6],[15,8,16,10],[27,3,27,6],[28,3,28,6]]}
["◄"]
[null,null,null,"Runoff und Erosion"]
[null,null,"Randstreifen (m)"]
[null,null,"Reduktion Runoffaustrag (%)"]
[null,null,"Reduktion Erosionsaustrag (%)"]
[null,null,"Austrag Wasser (m3)"," =100 x (1-\"Reduktion Runoffaustrag (%)\")"]
[null,null,"Grabenwasser (m3)"," =\"Austrag Wasser\" +30"]
[null,null,"VerdünnungGraben (m3)"," =\"Grabenwasser\" x 2"]
[]
[null,null,"Rückstand zum Zeitpunkt des  Niederschlagsereignisses (g a.i./ha)"," =(\"AWM a.i.\" x ((100-\"Interzeption(%)\")/100) x EXP(-(LN(2)/DT50) x \"Niederschlag nach 3 d\")"]
[]
[null,null,"Runoff (mg)"," =\"Rückstand zum Zeitpunkt des  Niederschlagsereignisses\" x \"Austrag in (%) der AWM über Runoff\" /100 x 1000 x (1-\"Reduktion Runoffaustrag (%)\"/100) x 1 ha"]
[]
[]
[null,null,"Erosion (mg)"," =\"Rückstand zum Zeitpunkt des  Niederschlagsereignisses\" x \"Austrag in (%) der AWM über Runoff\"/100 x 1000 x (1-\"Reduktion Erosionsaustrag (%)\"/100) x 1 ha"]
[null,null,null,null,null,null,null,null,"Drainage"]
[]
[null,"Grundwasser","PEC ini Runoff (µg/L)"," =\"Runoff\" / \"VerdünnungGraben\"",null,null,null,null,"PEC ini Graben (µg/L)","siehe Konzept Drainage"]
[]
[null,null,"PEC ini Fließgewässer (µg/L)"," =PEC ini Runoff / 12.5",null,null,null,null,"PEC ini Fließgewässer (µg/L)"," =PEC ini Graben / 12.5"]
[]
[null,null,"PEC ini Uferfiltrat (µg/L)"," =PEC ini Fließgewässer*(100-\"Eliminationsrate (%)\")/100",null,null,null,null,"PEC ini Uferfiltrat (µg/L)"," =PEC ini Fließgewässer*(100-\"Eliminationsrate (%)\")/100"]
[]
[null,"Aquatische Biozönose","PEC ini Runoff (µg/L)"," =\"Runoff\" / \"VerdünnungGraben\"",null,null,null,null,"PEC ini Graben (µg/l)","siehe Konzept Drainage"]
[]
[null,null,"TER Graben"," =\"Ökotoxikologischer Endpunkt der aquatischen Spezies\" / PEC ini Runoff",null,null,null,null,"TER Graben"," =\"Ökotoxikologischer Endpunkt der aquatischen Spezies\" / PEC ini Graben"]
[]
[null,null,"PEC ini Gesamtaustrag (µg/L)","= (\"Runoff\" + \"Erosion\")/ \"VerdünnungGraben\""]
[]
[null,null,"TER Graben"," =\"Ökotoxikologischer Endpunkt der aquatischen Spezies\" / PEC ini Gesamtaustrag"]

{"sheet":"Mehrfachapplikation","index":10,"n_rows":17,"n_cols":12,"rows_kept":17,"cut":false,"hidden":false,"merged":[]}
["◄",null,"Auswahl:",null,{"$f":"Exposit!$J$2","v":1}]
[null,1,"Einfachapplikation"]
[null,2,"Mehrfachapplikation"]
[]
[null,"Anzahl Anwendungen (1-10)",{"$f":"Exposit!O2","v":4},""]
[null,"Intervall [d]",{"$f":"Exposit!O3","v":14}]
[null,"DT50 [d]",{"$f":"Exposit!C9","v":121}]
[]
[null,"Berechnung der Anfangs- und Endkonzentration für jede Einzelanwendung:"]
[null,"#(Einzelanwendung)",1,2,3,4,5,6,7,8,9,10]
[null,"Interzeption [%]",{"$f":"IF($C$5+1-C10>0,Exposit!R5,\"\")","v":50},{"$f":"IF($C$5+1-D10>0,Exposit!S5,\"\")","v":70},{"$f":"IF($C$5+1-E10>0,Exposit!T5,\"\")","v":70},{"$f":"IF($C$5+1-F10>0,Exposit!U5,\"\")","v":90},{"$f":"IF($C$5+1-G10>0,Exposit!V5,\"\")","v":""},{"$f":"IF($C$5+1-H10>0,Exposit!W5,\"\")","v":""},{"$f":"IF($C$5+1-I10>0,Exposit!X5,\"\")","v":""},{"$f":"IF($C$5+1-J10>0,Exposit!Y5,\"\")","v":""},{"$f":"IF($C$5+1-K10>0,Exposit!Z5,\"\")","v":""},{"$f":"IF($C$5+1-L10>0,Exposit!AA5,\"\")","v":""}]
[null,"Anwendungskonz. [g/ha]",{"$f":"IF($C$5+1-C10>0,Exposit!R4,\"\")","v":500},{"$f":"IF($C$5+1-D10>0,Exposit!S4,\"\")","v":500},{"$f":"IF($C$5+1-E10>0,Exposit!T4,\"\")","v":500},{"$f":"IF($C$5+1-F10>0,Exposit!U4,\"\")","v":500},{"$f":"IF($C$5+1-G10>0,Exposit!V4,\"\")","v":""},{"$f":"IF($C$5+1-H10>0,Exposit!W4,\"\")","v":""},{"$f":"IF($C$5+1-I10>0,Exposit!X4,\"\")","v":""},{"$f":"IF($C$5+1-J10>0,Exposit!Y4,\"\")","v":""},{"$f":"IF($C$5+1-K10>0,Exposit!Z4,\"\")","v":""},{"$f":"IF($C$5+1-L10>0,Exposit!AA4,\"\")","v":""}]
[null,"Interzeption berücksichtigt [g/ha]",{"$f":"IF($C$5+1-C10>0,C12*(100-(C11))/100,\"\")","v":250},150,150,50,"","","","","",""]
[null,"Anfang Intervall [d]",{"$f":"IF(C13=\"\",\"\",0)","v":0},{"$f":"IF(D13=\"\",\"\",C14+$C$6)","v":14},{"$f":"IF(E13=\"\",\"\",D14+$C$6)","v":28},42,"","","","","",""]
[null,"Ende Intervall [d]",{"$f":"IF(D13=\"\",\"\",$C$6)","v":14},{"$f":"IF(D13=\"\",\"\",C15+$C$6)","v":28},{"$f":"IF(E13=\"\",\"\",D15+$C$6)","v":42},56,"","","","","",""]
[null,"c(i) Anfang",{"$f":"IF(C13=\"\",\"\",C13)","v":250},{"$f":"IF(D13=\"\",\"\",D13+C17)","v":380.73320135196576},{"$f":"IF(E13=\"\",\"\",E13+D17)","v":501.39116163568656},512.75035141513149,"","","","","",""]
[null,"c(i) Ende",{"$f":"IF(C13=\"\",\"\",C16*EXP(-(LN(2)/$C$7)*$C$6))","v":230.73320135196576},351.39116163568656,462.75035141513149,473.23412030543494,"","","","","",""]

{"sheet":"Versionskontrolle","index":11,"n_rows":17,"n_cols":3,"rows_kept":17,"cut":false,"hidden":false,"merged":[]}
["Exposit 3.01"]
[]
["Versionskontrolle"]
[null,"letzte Änderung vom","Inhalt der Änderung"]
["Exposit 3.01","2013-03-05","löst Exposit Version 3.0 beta ab, veröffentlicht auf BVL Internetseite am 18.03.2014"]
[null,"2015-03-04","Redaktionelle Änderung:"]
[null,null,"Arbeitsblatt \"Übersicht\" Zelle G61und G62: Letzter Satz \"Bei Wirkstoffen mit einem Koc > 50000 …\" ergänzt."]
[null,null,"Arbeitsblatt\"Konzept Runoff\": Ergänzungen in Zeile 58 bis Zeile 65"]
[null,"2017-02-02","UBA intern"]
[null,null,"Erweiterung Blatt \"Report\" für die Übertragung von Ergebnissen in Tabellenmuster der dRR-Vorlagen"]
[null,null,"keine Veröffentlichung BVL"]
[null,"2017-05-29","UBA intern"]
[null,null,"Erweiterung Blatt \"90.Perz\" für die Berechnung des 90. Perzentils bei Labor-DT50"]
[null,null,"keine Veröffentlichung BVL"]
["Exposit 3.02","2017-12-14","Koc Gefährdungsklasse und Koc Runoff zusammengefasst, da EU Endpunkte verwendet werden sollen. "]
[null,null,"Entsprechende Änderungen in \"Übersicht\" und \"Exposit\" vorgenommen, Verweis auf Input Decision gelöscht"]
[null,null," veröffentlicht auf BVL Internetseite im Januar 2018"]